fUSD/lending_fUSD_20251212
["ID","MTS","AMOUNT","RATE_DAILY","PERIOD"]
[398339609,1765538067683,-500.0,0.00040547,30]
[398339610,1765538067692,-885.09,0.00040547,30]
[398339611,1765538067702,-1097.95,0.00040547,30]
[398339612,1765538067711,-500.0,0.00040547,30]
[398339613,1765538067720,-500.0,0.00040547,30]
[398339614,1765538067730,-500.0,0.00040547,30]
[398339615,1765538067743,-837.55,0.00040547,30]
[398339616,1765538067752,-540.22,0.00040547,30]
[398339617,1765538067761,-385.07209344,0.00040547,30]
[398339618,1765538067771,-500.0,0.00040547,30]
[398339619,1765538067781,-519.63,0.00040547,30]
[398339620,1765538067791,-500.0,0.00040547,30]
[398339621,1765538067800,-500.0,0.00040547,30]
[398339622,1765538067809,-1294.43,0.00040547,30]
[398339623,1765538067819,-500.0,0.00040547,30]
[398339624,1765538067832,-500.0,0.00040547,30]
[398339625,1765538067841,-1011.88,0.00040547,30]
[398339626,1765538067851,-500.0,0.00040547,30]
[398339627,1765538067860,-500.0,0.00040547,30]
[398339628,1765538067876,-171.52393524,0.00040547,30]
[398339629,1765538067885,-500.0,0.00040547,30]
[398339630,1765538067895,-1196.03,0.00040547,30]
[398339631,1765538067905,-617.95,0.00040547,30]
[398339632,1765538067915,-548.66,0.00040547,30]
[398339633,1765538067924,-500.0,0.00040547,30]
[398339634,1765538067935,-500.0,0.00040547,30]
[398339635,1765538067946,-678.18,0.00040547,30]
[398339636,1765538067956,-500.0,0.00040547,30]
[398339637,1765538067965,-500.0,0.00040547,30]
[398339638,1765538067976,-500.0,0.00040547,30]
[398339639,1765538067986,-585.26,0.00040547,30]
[398339640,1765538067995,-500.0,0.00040547,30]
[398339641,1765538068005,-500.0,0.00040547,30]
[398339642,1765538068014,-500.0,0.00040547,30]
[398339643,1765538068555,-567.30019663,0.00040547,30]
[398339644,1765538068604,-500.0,0.00040547,30]
[398339645,1765538068614,-500.0,0.00040547,30]
[398339646,1765538068623,-672.38,0.00040547,30]
[398339647,1765538068633,-542.28,0.00040547,30]
[398339648,1765538068643,-500.0,0.00040547,30]
[398339649,1765538068653,-500.0,0.00040547,30]
[398339650,1765538068662,-755.36,0.00040547,30]
[398339651,1765538068672,-1228.59,0.00040547,30]
[398339652,1765538068681,-500.0,0.00040547,30]
[398339653,1765538068691,-510.55601201,0.00040547,30]
[398339654,1765538068700,-1439.79,0.00040547,30]
[398339655,1765538068709,-500.0,0.00040547,30]
[398339656,1765538068719,-864.07,0.00040547,30]
[398339657,1765538068729,-276.72803754,0.00040547,30]
[398339658,1765538068738,-498.51728048,0.00040547,30]
[398339659,1765538068748,-500.0,0.00040547,30]
[398339660,1765538068757,-573.95,0.00040547,30]
[398339661,1765538068767,-500.0,0.00040547,30]
[398339662,1765538068777,-500.0,0.00040547,30]
[398339663,1765538068786,-533.54,0.00040547,30]
[398339664,1765538068797,-938.76,0.00040547,30]
[398339665,1765538068807,-500.0,0.00040547,30]
[398339666,1765538068817,-500.0,0.00040547,30]
[398339667,1765538068827,-620.08,0.00040547,30]
[398339668,1765538068837,-775.57,0.00040547,30]
[398339669,1765538068847,-500.0,0.00040547,30]
[398339670,1765538068856,-500.0,0.00040547,30]
[398339671,1765538068869,-501.55,0.00040547,30]
[398339672,1765538068878,-500.0,0.00040547,14]
[398339673,1765538068888,-500.0,0.00040547,30]
[398339674,1765538068897,-500.0,0.00040547,30]
[398339675,1765538068907,-755.67,0.00040547,30]
[398339676,1765538068916,-500.0,0.00040547,30]
[398339677,1765538068926,-503.01,0.00040547,30]
[398339678,1765538068938,-626.32295176,0.00040547,30]
[398339679,1765538068952,-252.45344782,0.00040547,30]
[398339680,1765538068963,-595.47,0.00040547,30]
[398339681,1765538068972,-517.36,0.00040547,30]
[398339682,1765538068982,-500.0,0.00040547,30]
[398339683,1765538068991,-500.0,0.00040547,30]
[398339684,1765538069006,-500.0,0.00040547,30]
[398339685,1765538069023,-1197.34,0.00040547,30]
[398339686,1765538069033,-609.14,0.00040547,30]
[398339687,1765538069043,-897.9,0.00040547,30]
[398339688,1765538069053,-416.28024997,0.00040547,30]
[398339689,1765538069063,-702.09,0.00040547,30]
[398339690,1765538069074,-663.82,0.00040547,30]
[398339691,1765538069084,-500.0,0.00040547,30]
[398339692,1765538069094,-500.0,0.00040547,30]
[398339693,1765538069104,-500.0,0.00040547,30]
[398339694,1765538069114,-500.0,0.00040547,30]
[398339695,1765538069124,-740.86,0.00040547,30]
[398339696,1765538069134,-500.0,0.00040547,30]
[398339697,1765538069144,-500.0,0.00040547,30]
[398339698,1765538069154,-1430.91,0.00040547,30]
[398339699,1765538069164,-500.0,0.00040547,30]
[398339700,1765538069173,-600.0,0.00040547,30]
[398339701,1765538069183,-1100.71,0.00040547,11]
[398339702,1765538069194,-563.18,0.00040547,30]
[398339703,1765538069204,-1144.71,0.00040547,30]
[398339704,1765538069214,-758.29,0.00040547,30]
[398339705,1765538069224,-500.0,0.00040547,30]
[398339706,1765538069234,-667.94,0.00040547,30]
[398339707,1765538069244,-500.0,0.00040547,30]
[398339708,1765538069254,-1846.03,0.00040547,30]
[398339709,1765538069264,-500.0,0.00040547,30]
[398339710,1765538069273,-500.0,0.00040547,30]
[398339711,1765538069283,-500.0,0.00040547,30]
[398339712,1765538069292,-500.0,0.00040547,30]
[398339713,1765538069302,-500.0,0.00040547,30]
[398339714,1765538069312,-500.0,0.00040547,30]
[398339715,1765538069322,-676.5,0.00040547,30]
[398339716,1765538069331,-500.0,0.00040547,30]
[398339717,1765538069341,-500.0,0.00040547,30]
[398339718,1765538069351,-732.08,0.00040547,30]
[398339719,1765538069360,-724.94,0.00040547,30]
[398339720,1765538069370,-500.0,0.00040547,30]
[398339721,1765538069380,-643.49,0.00040547,30]
[398339722,1765538069391,-500.0,0.00040547,30]
[398339723,1765538069401,-500.0,0.00040547,30]
[398339724,1765538069412,-1213.64,0.00040547,30]
[398339725,1765538069423,-500.0,0.00040547,30]
[398339726,1765538069433,-607.07,0.00040547,30]
[398339727,1765538069444,-750.79,0.00040547,30]
[398339728,1765538069454,-464.46324226,0.00040547,30]
[398339729,1765538069464,-565.7,0.00040547,30]
[398339730,1765538069473,-1215.39,0.00040547,30]
[398339731,1765538069483,-500.0,0.00040547,30]
[398339732,1765538069492,-500.0,0.00040547,30]
[398339733,1765538069502,-500.0,0.00040547,30]
[398339734,1765538069511,-500.0,0.00040547,30]
[398339735,1765538069521,-848.58,0.00040547,30]
[398339736,1765538069529,-500.0,0.00040547,30]
[398339737,1765538069540,-500.0,0.00040547,30]
[398339738,1765538069558,-500.0,0.00040547,30]
[398339739,1765538069568,-753.21,0.00040547,30]
[398339740,1765538069577,-500.0,0.00040547,30]
[398339741,1765538069587,-500.0,0.00040547,30]
[398339742,1765538069597,-500.0,0.00040547,30]
[398339743,1765538069607,-500.0,0.00040547,30]
[398339744,1765538069616,-500.0,0.00040547,30]
[398339745,1765538069626,-552.91,0.00040547,30]
[398339746,1765538069636,-500.0,0.00040547,30]
[398339747,1765538069646,-500.0,0.00040547,30]
[398339748,1765538069655,-795.68,0.00040547,30]
[398339749,1765538069665,-500.0,0.00040547,30]
[398339750,1765538069675,-500.0,0.00040547,30]
[398339751,1765538069685,-500.0,0.00040547,30]
[398339752,1765538069694,-692.67,0.00040547,30]
[398339753,1765538069704,-745.98,0.00040547,30]
[398339754,1765538069714,-500.0,0.00040547,30]
[398339755,1765538069724,-500.0,0.00040547,30]
[398339756,1765538069733,-500.0,0.00040547,30]
[398339757,1765538069743,-714.2,0.00040547,30]
[398339758,1765538069752,-500.0,0.00040547,30]
[398339759,1765538069762,-500.0,0.00040547,30]
[398339760,1765538069772,-500.0,0.00040547,30]
[398339761,1765538069781,-500.0,0.00040547,30]
[398339762,1765538069791,-990.89,0.00040547,30]
[398339763,1765538069800,-500.0,0.00040547,30]
[398339764,1765538069810,-500.0,0.00040547,30]
[398339765,1765538069820,-1141.33,0.00040547,30]
[398339766,1765538069830,-500.0,0.00040547,30]
[398339767,1765538069839,-500.0,0.00040547,30]
[398339768,1765538069849,-500.0,0.00040547,30]
[398339769,1765538069859,-500.0,0.00040547,30]
[398339770,1765538069869,-500.0,0.00040547,30]
[398339771,1765538069881,-736.93,0.00040547,30]
[398339772,1765538069890,-500.0,0.00040547,30]
[398339773,1765538069899,-500.0,0.00040547,30]
[398339774,1765538069911,-500.0,0.00040547,30]
[398339775,1765538069921,-500.0,0.00040547,30]
[398339776,1765538069930,-1026.69,0.00040547,30]
[398339777,1765538069940,-866.2,0.00040547,30]
[398339778,1765538069951,-500.0,0.00040547,30]
[398339779,1765538069961,-510.19,0.00040547,30]
[398339780,1765538069971,-500.0,0.00040547,30]
[398339781,1765538069980,-709.46,0.00040547,30]
[398339782,1765538069990,-755.64,0.00040547,30]
[398339783,1765538070000,-500.0,0.00040547,30]
[398339784,1765538070010,-1337.95,0.00040547,30]
[398339785,1765538070019,-500.0,0.00040547,30]
[398339786,1765538070029,-3627.22,0.00040547,30]
[398339787,1765538070038,-750.49,0.00040547,30]
[398339788,1765538070048,-500.0,0.00040547,30]
[398339789,1765538070057,-856.96,0.00040547,30]
[398339790,1765538070066,-1759.45,0.00040547,30]
[398339791,1765538070076,-500.0,0.00040547,30]
[398339792,1765538070085,-524.23,0.00040547,30]
[398339793,1765538070095,-500.0,0.00040547,30]
[398339794,1765538070110,-500.54,0.00040547,30]
[398339795,1765538070120,-1039.78,0.00040547,30]
[398339796,1765538070130,-730.61,0.00040547,30]
[398339797,1765538070140,-615.84,0.00040547,30]
[398339798,1765538070149,-500.0,0.00040547,30]
[398339799,1765538070159,-647.65,0.00040547,30]
[398339800,1765538070169,-339.81959769,0.00040547,30]
[398339801,1765538070179,-517.29115688,0.00040547,30]
[398339802,1765538070189,-906.8,0.00040547,30]
[398339803,1765538070199,-551.86,0.00040547,30]
[398339804,1765538070209,-1472.62,0.00040547,30]
[398339805,1765538070220,-473.79082574,0.00040547,30]
[398339806,1765538070230,-500.0,0.00040547,30]
[398339807,1765538070239,-500.0,0.00040547,30]
[398339808,1765538070249,-500.0,0.00040547,30]
[398339809,1765538070258,-500.0,0.00040547,30]
[398339810,1765538070268,-2737.4,0.00040547,30]
[398339811,1765538070278,-1372.17,0.00040547,30]
[398339812,1765538070287,-500.0,0.00040547,30]
[398339813,1765538070297,-500.0,0.00040547,30]
[398339814,1765538070306,-500.0,0.00040547,30]
[398339815,1765538070317,-500.0,0.00040547,30]
[398339816,1765538070327,-500.0,0.00040547,30]
[398339817,1765538070337,-500.0,0.00040547,30]
[398339818,1765538070346,-500.0,0.00040547,30]
[398339819,1765538070356,-500.0,0.00040547,30]
[398339820,1765538070366,-2430.46,0.00040547,30]
[398339821,1765538070376,-500.0,0.00040547,30]
[398339822,1765538070385,-500.0,0.00040547,30]
[398339823,1765538070395,-500.0,0.00040547,30]
[398339824,1765538070405,-1139.75,0.00040547,30]
[398339825,1765538070414,-1401.35,0.00040547,30]
[398339826,1765538070424,-500.0,0.00040547,30]
[398339827,1765538070434,-800.13,0.00040547,30]
[398339828,1765538070443,-500.0,0.00040547,30]
[398339829,1765538070453,-1445.96,0.00040547,30]
[398339830,1765538070462,-500.0,0.00040547,30]
[398339831,1765538070472,-918.45,0.00040547,30]
[398339832,1765538070481,-1070.7,0.00040547,30]
[398339833,1765538070491,-500.0,0.00040547,30]
[398339834,1765538070501,-500.0,0.00040547,30]
[398339835,1765538070512,-500.0,0.00040547,30]
[398339836,1765538070522,-500.0,0.00040547,30]
[398339837,1765538070531,-500.0,0.00040547,30]
[398339838,1765538070541,-2437.96,0.00040547,30]
[398339839,1765538070551,-500.0,0.00040547,30]
[398339840,1765538070561,-500.0,0.00040547,30]
[398339841,1765538070570,-592.87,0.00040547,30]
[398339842,1765538070580,-500.0,0.00040547,30]
[398339843,1765538070590,-500.0,0.00040547,30]
[398339844,1765538070599,-500.0,0.00040547,30]
[398339845,1765538070609,-542.04,0.00040547,30]
[398339846,1765538070619,-1588.94,0.00040547,30]
[398339847,1765538070628,-500.0,0.00040547,30]
[398339848,1765538070637,-560.579055,0.00040547,30]
[398339849,1765538070652,-537.45,0.00040547,30]
[398339850,1765538070661,-500.0,0.00040547,30]
[398339851,1765538070671,-522.96,0.00040547,30]
[398339852,1765538070681,-500.0,0.00040547,30]
[398339853,1765538070691,-1096.52,0.00040547,30]
[398339854,1765538070700,-500.0,0.00040547,30]
[398339855,1765538070710,-500.0,0.00040547,30]
[398339856,1765538070720,-637.83,0.00040547,30]
[398339857,1765538070730,-698.44,0.00040547,30]
[398339858,1765538070740,-500.0,0.00040547,30]
[398339859,1765538070750,-660.2,0.00040547,30]
[398339860,1765538070759,-500.0,0.00040547,30]
[398339861,1765538070768,-500.0,0.00040547,30]
[398339862,1765538070778,-500.0,0.00040547,30]
[398339863,1765538070787,-500.0,0.00040547,30]
[398339864,1765538070797,-500.0,0.00040547,30]
[398339865,1765538070807,-1065.82,0.00040547,30]
[398339866,1765538070816,-500.0,0.00040547,30]
[398339867,1765538070826,-500.0,0.00040547,30]
[398339868,1765538070835,-500.0,0.00040547,30]
[398339869,1765538070845,-2027.17,0.00040547,30]
[398339870,1765538070854,-663.04,0.00040547,30]
[398339871,1765538070864,-500.0,0.00040547,30]
[398339872,1765538070876,-500.0,0.00040547,30]
[398339873,1765538070885,-500.0,0.00040547,30]
[398339874,1765538070895,-500.0,0.00040547,30]
[398339875,1765538070905,-500.0,0.00040547,30]
[398339876,1765538070914,-500.0,0.00040547,30]
[398339877,1765538070924,-500.0,0.00040547,30]
[398339878,1765538070933,-500.0,0.00040547,30]
[398339879,1765538070943,-500.0,0.00040547,30]
[398339880,1765538070952,-1526.42,0.00040547,30]
[398339881,1765538070962,-500.0,0.00040547,30]
[398339882,1765538070972,-1034.23,0.00040547,30]
[398339883,1765538070981,-500.0,0.00040547,30]
[398339884,1765538070990,-500.0,0.00040547,30]
[398339885,1765538071000,-500.0,0.00040547,30]
[398339886,1765538071010,-604.96,0.00040547,30]
[398339887,1765538071020,-500.0,0.00040547,30]
[398339888,1765538071034,-500.0,0.00040547,30]
[398339889,1765538071065,-211.33501578,0.00040547,30]
[398339890,1765538071075,-500.0,0.00040547,30]
[398339891,1765538071086,-500.0,0.00040547,30]
[398339892,1765538071095,-528.36614215,0.00040547,30]
[398339893,1765538071104,-500.0,0.00040547,30]
[398339894,1765538071114,-500.0,0.00040547,30]
[398339895,1765538071123,-526.63,0.00040547,30]
[398339896,1765538071133,-500.0,0.00040547,30]
[398339897,1765538071142,-1577.6,0.00040547,30]
[398339898,1765538071152,-500.0,0.00040547,30]
[398339899,1765538071161,-500.0,0.00040547,30]
[398339900,1765538071171,-500.0,0.00040547,30]
[398339901,1765538071180,-500.0,0.00040547,30]
[398339902,1765538071190,-1132.8,0.00040547,30]
[398339903,1765538071199,-705.52,0.00040547,30]
[398339904,1765538071208,-570.07,0.00040547,30]
[398339905,1765538071218,-961.9,0.00040547,30]
[398339906,1765538071227,-500.0,0.00040547,30]
[398339907,1765538071236,-735.82,0.00040547,30]
[398339908,1765538071245,-749.42,0.00040547,30]
[398339909,1765538071255,-1191.88,0.00040547,30]
[398339910,1765538071264,-522.47,0.00040547,30]
[398339911,1765538071273,-4298.84,0.00040547,30]
[398339912,1765538071282,-974.16,0.00040547,30]
[398339913,1765538071292,-500.0,0.00040547,30]
[398339914,1765538071301,-1095.96,0.00040547,30]
[398339915,1765538071311,-500.0,0.00040547,30]
[398339916,1765538071320,-500.0,0.00040547,30]
[398339917,1765538071330,-938.71,0.00040547,30]
[398339918,1765538071339,-1397.58,0.00040547,30]
[398339919,1765538071349,-500.0,0.00040547,30]
[398339920,1765538071358,-500.0,0.00040547,30]
[398339921,1765538071367,-2368.57,0.00040547,30]
[398339922,1765538071377,-508.91,0.00040547,30]
[398339923,1765538071387,-1181.83,0.00040547,30]
[398339924,1765538071399,-2107.36,0.00040547,30]
[398339925,1765538071408,-591.32,0.00040547,30]
[398339926,1765538071417,-500.0,0.00040547,30]
[398339927,1765538071427,-1407.05,0.00040547,30]
[398339928,1765538071436,-712.24,0.00040547,30]
[398339929,1765538071446,-500.0,0.00040547,30]
[398339930,1765538071456,-500.0,0.00040547,30]
[398339931,1765538071466,-500.0,0.00040547,30]
[398339932,1765538071476,-1000.77,0.00040547,30]
[398339933,1765538071485,-500.0,0.00040547,30]
[398339934,1765538071495,-500.0,0.00040547,30]
[398339935,1765538071505,-500.0,0.00040547,30]
[398339936,1765538071516,-578.91,0.00040547,30]
[398339937,1765538071525,-1480.01,0.00040547,30]
[398339938,1765538071535,-796.45,0.00040547,30]
[398339939,1765538071544,-1121.9,0.00040547,30]
[398339940,1765538071553,-538.64,0.00040547,30]
[398339941,1765538071563,-875.09,0.00040547,30]
[398339942,1765538071572,-500.0,0.00040547,30]
[398339943,1765538071582,-1342.46,0.00040547,30]
[398339944,1765538071591,-500.0,0.00040547,30]
[398339945,1765538071601,-500.0,0.00040547,30]
[398339946,1765538071610,-500.0,0.00040547,30]
[398339947,1765538071619,-500.0,0.00040547,30]
[398339948,1765538071629,-551.7,0.00040547,30]
[398339949,1765538071639,-500.0,0.00040547,30]
[398339950,1765538071648,-500.0,0.00040547,30]
[398339951,1765538071658,-500.0,0.00040547,30]
[398339952,1765538071667,-500.0,0.00040547,30]
[398339953,1765538071676,-500.0,0.00040547,30]
[398339954,1765538071686,-891.01,0.00040547,30]
[398339955,1765538071695,-500.0,0.00040547,30]
[398339956,1765538071704,-506.52399739,0.00040547,30]
[398339957,1765538071714,-1631.76,0.00040547,30]
[398339958,1765538071723,-500.0,0.00040547,30]
[398339959,1765538071734,-511.07,0.00040547,30]
[398339960,1765538071743,-500.0,0.00040547,30]
[398339961,1765538071752,-500.0,0.00040547,30]
[398339962,1765538071762,-935.63,0.00040547,30]
[398339963,1765538071771,-500.0,0.00040547,30]
[398339964,1765538071780,-1213.86,0.00040547,30]
[398339965,1765538071790,-500.0,0.00040547,30]
[398339966,1765538071799,-500.0,0.00040547,30]
[398339967,1765538071809,-713.52,0.00040547,30]
[398339968,1765538071818,-500.0,0.00040547,30]
[398339969,1765538071827,-999.59,0.00040547,30]
[398339970,1765538071837,-762.67,0.00040547,30]
[398339971,1765538071846,-500.0,0.00040547,30]
[398339972,1765538071856,-456.03966308,0.00040547,30]
[398339973,1765538071869,-922.65,0.00040547,30]
[398339974,1765538071879,-500.0,0.00040547,30]
[398339975,1765538071888,-1139.73,0.00040547,30]
[398339976,1765538071897,-960.26,0.00040547,30]
[398339977,1765538071908,-921.07,0.00040547,30]
[398339978,1765538071917,-824.08,0.00040547,30]
[398339979,1765538071927,-500.0,0.00040547,30]
[398339980,1765538071938,-500.0,0.00040547,30]
[398339981,1765538071949,-1836.88,0.00040547,30]
[398339982,1765538071958,-500.0,0.00040547,30]
[398339983,1765538071968,-500.0,0.00040547,30]
[398339984,1765538071977,-500.0,0.00040547,30]
[398339985,1765538071988,-500.0,0.00040547,30]
[398339986,1765538071997,-807.06,0.00040547,30]
[398339987,1765538072007,-1304.95,0.00040547,30]
[398339988,1765538072017,-1005.91,0.00040547,30]
[398339989,1765538072026,-500.0,0.00040547,30]
[398339990,1765538072036,-517.02690934,0.00040547,30]
[398339991,1765538072045,-1051.07,0.00040547,30]
[398339992,1765538072055,-500.0,0.00040547,30]
[398339993,1765538072064,-500.0,0.00040547,30]
[398339994,1765538072073,-929.4,0.00040547,30]
[398339995,1765538072083,-626.48163108,0.00040547,30]
[398339996,1765538072092,-500.0,0.00040547,30]
[398339997,1765538072102,-500.0,0.00040547,30]
[398339998,1765538072111,-500.0,0.00040547,30]
[398339999,1765538072121,-500.0,0.00040547,30]
[398340000,1765538072130,-621.09,0.00040547,30]
[398340001,1765538072140,-500.0,0.00040547,30]
[398340002,1765538072149,-500.0,0.00040547,30]
[398340003,1765538072159,-500.0,0.00040547,30]
[398340004,1765538072169,-1874.12,0.00040547,30]
[398340005,1765538072179,-500.0,0.00040547,30]
[398340006,1765538072188,-416.90298339,0.00040547,30]
[398340007,1765538072198,-500.0,0.00040547,30]
[398340008,1765538072208,-610.27643353,0.00040547,30]
[398340009,1765538072218,-521.95,0.00040547,30]
[398340010,1765538072227,-500.0,0.00040547,25]
[398340011,1765538072237,-500.0,0.00040547,30]
[398340012,1765538072246,-500.0,0.00040547,30]
[398340013,1765538072256,-578.01,0.00040547,30]
[398340014,1765538072265,-500.0,0.00040547,12]
[398340015,1765538072275,-500.0,0.00040547,30]
[398340016,1765538072285,-500.0,0.00040547,30]
[398340017,1765538072295,-500.0,0.00040547,30]
[398340018,1765538072304,-701.87,0.00040547,30]
[398340019,1765538072314,-667.26,0.00040547,7]
[398340020,1765538072324,-532.36,0.00040547,30]
[398340021,1765538072333,-500.0,0.00040547,30]
[398340022,1765538072343,-500.0,0.00040547,30]
[398340023,1765538072353,-890.33,0.00040547,30]
[398340024,1765538072362,-619.34,0.00040547,30]
[398340025,1765538072371,-500.0,0.00040547,30]
[398340026,1765538072381,-666.66,0.00040547,30]
[398340027,1765538072390,-500.0,0.00040547,30]
[398340028,1765538072399,-679.95,0.00040547,30]
[398340029,1765538072408,-846.97,0.00040547,30]
[398340030,1765538072417,-500.0,0.00040547,30]
[398340031,1765538072426,-500.0,0.00040547,30]
[398340032,1765538072435,-1622.6,0.00040547,30]
[398340033,1765538072444,-400.0,0.00040547,30]
[398340034,1765538072454,-1634.93,0.00040547,30]
[398340035,1765538072463,-1372.09,0.00040547,30]
[398340036,1765538072472,-529.06208976,0.00040547,30]
[398340037,1765538072481,-867.67,0.00040547,30]
[398340038,1765538072491,-500.0,0.00040547,30]
[398340039,1765538072500,-500.0,0.00040547,30]
[398340040,1765538072509,-630.63,0.00040547,30]
[398340041,1765538072519,-500.0,0.00040547,30]
[398340042,1765538072528,-500.0,0.00040547,30]
[398340043,1765538072538,-1368.81,0.00040547,30]
[398340044,1765538072547,-500.0,0.00040547,30]
[398340045,1765538072556,-500.0,0.00040547,30]
[398340046,1765538072566,-500.0,0.00040547,30]
[398340047,1765538072575,-500.0,0.00040547,30]
[398340048,1765538072584,-500.0,0.00040547,30]
[398340049,1765538072593,-500.0,0.00040547,30]
[398340050,1765538072603,-2251.55,0.00040547,30]
[398340051,1765538072612,-1877.84,0.00040547,30]
[398340052,1765538072622,-626.64,0.00040547,30]
[398340053,1765538072632,-500.0,0.00040547,30]
[398340054,1765538072641,-554.25,0.00040547,30]
[398340055,1765538072651,-500.0,0.00040547,30]
[398340056,1765538072660,-500.0,0.00040547,30]
[398340057,1765538072669,-1066.72,0.00040547,30]
[398340058,1765538072678,-500.0,0.00040547,30]
[398340059,1765538072688,-1191.7,0.00040547,30]
[398340060,1765538072698,-516.11462575,0.00040547,30]
[398340061,1765538072707,-620.95,0.00040547,30]
[398340062,1765538072716,-500.0,0.00040547,30]
[398340063,1765538072726,-500.0,0.00040547,30]
[398340064,1765538072735,-304.84489355,0.00040547,30]
[398340065,1765538072745,-2254.72,0.00040547,30]
[398340066,1765538072754,-1109.61,0.00040547,30]
[398340067,1765538072763,-500.0,0.00040547,30]
[398340068,1765538072772,-500.0,0.00040547,30]
[398340069,1765538072781,-500.0,0.00040547,30]
[398340070,1765538072791,-500.0,0.00040547,30]
[398340071,1765538072800,-1451.06,0.00040547,30]
[398340072,1765538072809,-524.1,0.00040547,30]
[398340073,1765538072819,-500.0,0.00040547,30]
[398340074,1765538072828,-535.99,0.00040547,30]
[398340075,1765538072838,-1647.96,0.00040547,30]
[398340076,1765538072847,-500.0,0.00040547,30]
[398340077,1765538072856,-151.68527764,0.00040547,30]
[398340078,1765538072867,-500.0,0.00040547,30]
[398340079,1765538072878,-500.0,0.00040547,30]
[398340080,1765538072887,-1607.35,0.00040547,30]
[398340081,1765538072896,-500.0,0.00040547,30]
[398340082,1765538072905,-1890.33,0.00040547,30]
[398340083,1765538072915,-500.0,0.00040547,30]
[398340084,1765538072925,-702.35,0.00040547,30]
[398340085,1765538072934,-1448.32,0.00040547,30]
[398340086,1765538072944,-1632.19,0.00040547,30]
[398340087,1765538072953,-500.0,0.00040547,30]
[398340088,1765538072963,-876.83,0.00040547,30]
[398340089,1765538072972,-832.79,0.00040547,30]
[398340090,1765538072982,-500.0,0.00040547,30]
[398340091,1765538072992,-570.08757838,0.00040547,30]
[398340092,1765538073002,-623.5,0.00040547,30]
[398340093,1765538073012,-2761.6,0.00040547,30]
[398340094,1765538073021,-604.56,0.00040547,30]
[398340095,1765538073031,-769.61,0.00040547,30]
[398340096,1765538073040,-1014.43,0.00040547,30]
[398340097,1765538073050,-500.0,0.00040547,30]
[398340098,1765538073059,-500.0,0.00040547,30]
[398340099,1765538073069,-500.0,0.00040547,30]
[398340100,1765538073078,-500.0,0.00040547,30]
[398340101,1765538073088,-977.53,0.00040547,30]
[398340102,1765538073098,-799.32,0.00040547,30]
[398340103,1765538073107,-500.0,0.00040547,30]
[398340104,1765538073116,-1062.18,0.00040547,30]
[398340105,1765538073125,-882.68,0.00040547,30]
[398340106,1765538073135,-502.48,0.00040547,30]
[398340107,1765538073144,-500.0,0.00040547,30]
[398340108,1765538073154,-500.0,0.00040547,30]